bitfinex/quotes_SOLUSD_20251024
["timestamp","ask_amount","ask_price","bid_price","bid_amount"]
[1761341419915,0.2,193.73,193.7,5.16254554]
[1761341420116,0.2,193.73,193.7,5.87254554]
[1761341420610,3.47093351,193.72,193.69,22.88]
[1761341420815,3.47093351,193.72,193.67,0.71]
[1761341421017,3.47093351,193.72,193.67,23.59]
[1761341421201,0.7,193.71,193.67,23.59]
[1761341421401,0.7,193.71,193.67,28.75341424]
[1761341421721,0.7,193.72,193.68,0.71]
[1761341422100,2.97093351,193.73,193.68,0.71]
[1761341422294,0.7,193.71,193.67,28.04341424]
[1761341422698,0.7,193.71,193.67,28.75341424]
[1761341423314,0.7,193.71,193.68,5.87302765]
[1761341423924,0.9,193.73,193.68,5.87302765]
[1761341424136,0.7,193.72,193.68,8.64396116]
[1761341424426,0.7,193.72,193.68,5.87302765]
[1761341425134,0.2,193.73,193.68,5.16302765]
[1761341425310,0.9,193.73,193.69,28.75282743]
[1761341426245,3.67093351,193.73,193.69,28.75282743]
[1761341427216,3.67093351,193.73,193.69,23.59]
[1761341427420,3.67093351,193.73,193.65,5.16395558]
[1761341427421,2.77093351,193.7,193.65,5.16395558]
[1761341427625,2.77093351,193.69,193.65,5.87395558]
[1761341427907,2.77093351,193.69,193.65,28.75395558]
[1761341428161,3.47093351,193.69,193.65,28.75395558]
[1761341428640,3.47093351,193.69,193.65,5.87395558]
[1761341429209,3.47093351,193.68,193.62,0.71]
[1761341429452,3.47093351,193.68,193.63,22.88]
[1761341429733,0.7,193.67,193.63,22.88]
[1761341430106,0.7,193.67,193.63,23.59]
[1761341430309,13.1048428,193.73,193.64,0.71]
[1761341430310,2.77093351,193.69,193.64,0.71]
[1761341430602,7.93397668,193.69,193.64,0.71]
[1761341430806,0.7,193.68,193.64,0.71]
[1761341433535,0.7,193.71,193.64,8.64515233]
[1761341433736,0.7,193.71,193.65,0.71]
[1761341434229,8.83277039,193.73,193.66,2.77093351]
[1761341434419,36.62,193.72,193.65,3.48093351]
[1761341434823,0.7,193.71,193.66,0.71]
[1761341435228,0.7,193.71,193.66,5.87361915]
[1761341435429,41.08217517,193.72,193.67,0.71]
[1761341435660,0.7,193.71,193.67,0.71]
[1761341436339,41.08217517,193.72,193.67,5.87339896]
[1761341436542,41.08217517,193.72,193.68,0.71]
[1761341436925,41.78217517,193.72,193.68,0.71]
[1761341437644,0.7,193.71,193.66,5.16368893]
[1761341437822,0.7,193.71,193.66,5.87368893]
[1761341438023,0.7,193.71,193.67,0.71]
[1761341438847,3.47093351,193.71,193.67,0.71]
[1761341439346,0.7,193.71,193.67,0.71]
[1761341441854,5.86235626,193.71,193.67,0.71]
[1761341442223,5.86235626,193.71,193.65,28.04387456]
[1761341442224,2.77093351,193.7,193.65,28.04387456]
[1761341442423,39.39093351,193.7,193.65,28.04387456]
[1761341442637,39.39093351,193.7,193.66,0.71]
[1761341443347,39.39093351,193.7,193.65,22.88]
[1761341443348,0.7,193.69,193.65,23.59]
[1761341444243,35.92,193.7,193.66,0.71]
[1761341444448,36.62,193.7,193.66,0.71]
[1761341445052,35.92,193.7,193.66,0.71]
[1761341448053,36.62,193.7,193.66,0.71]
[1761341448256,0.7,193.7,193.66,0.71]
[1761341448558,36.62,193.7,193.66,0.71]
[1761341449052,0.7,193.7,193.66,0.71]
[1761341449258,36.62,193.7,193.66,0.71]
[1761341451651,0.7,193.7,193.66,0.71]
[1761341451959,36.62,193.7,193.66,0.71]
[1761341453565,35.92,193.7,193.66,8.64449355]
[1761341453743,0.65,193.72,193.66,8.64449355]
[1761341453941,35.92,193.71,193.67,0.7]
[1761341454368,36.57,193.71,193.67,0.7]
[1761341457045,36.57,193.71,193.67,5.86329128]
[1761341457559,35.92,193.71,193.68,0.71]
[1761341458371,5.83223829,193.72,193.68,0.71]
[1761341458553,35.92,193.71,193.68,0.71]
[1761341458748,35.92,193.71,193.66,7.93456791]
[1761341458959,0.67,193.72,193.67,0.71]
[1761341459263,35.9,193.71,193.67,0.71]
[1761341459967,0.87,193.73,193.67,0.71]
[1761341460167,35.9,193.72,193.67,0.71]
[1761341460372,35.9,193.72,193.67,5.8731709]
[1761341460577,36.57,193.72,193.67,5.8731709]
[1761341460875,36.57,193.72,193.68,0.71]
[1761341461965,36.57,193.72,193.68,5.87309684]
[1761341461966,35.9,193.72,193.68,5.87309684]
[1761341462471,35.9,193.72,193.69,0.71]
[1761341463562,3.44093351,193.71,193.66,22.88]
[1761341464071,0.67,193.7,193.67,0.71]
[1761341464269,36.57,193.7,193.67,0.71]
[1761341465474,35.9,193.71,193.67,5.87342018]
[1761341465980,35.9,193.71,193.68,0.71]
[1761341470377,36.57,193.71,193.68,0.71]
[1761341471185,35.9,193.7,193.68,0.71]
[1761341475484,5.8321946,193.72,193.68,0.71]
[1761341475701,35.9,193.71,193.68,0.71]
[1761341476063,36.57,193.71,193.66,22.88]
[1761341476268,0.67,193.71,193.67,0.71]
[1761341476568,35.9,193.7,193.67,0.71]
[1761341477873,36.57,193.7,193.67,0.71]
[1761341478592,0.67,193.69,193.66,28.04366914]
[1761341478781,0.67,193.69,193.66,22.88]
[1761341479603,5.83292062,193.69,193.62,4.30945013]
[1761341479772,5.83292062,193.69,193.63,0.66]
[1761341480392,14.68049646,193.72,193.64,1.77515512]
[1761341480604,36.62,193.71,193.65,22.88]
[1761341480890,36.62,193.71,193.65,23.54]
[1761341481093,36.62,193.71,193.66,0.66]
[1761341481597,36.62,193.71,193.66,2.43515512]
[1761341483101,36.62,193.71,193.66,7.59863516]
[1761341483280,36.62,193.71,193.67,0.66]
[1761341483598,0.72,193.7,193.67,0.66]
[1761341483795,36.62,193.71,193.67,0.66]
[1761341484676,0.72,193.71,193.67,0.66]
[1761341485184,35.9,193.7,193.67,0.66]
[1761341486895,0.72,193.71,193.67,0.66]
[1761341487201,35.9,193.7,193.67,0.66]
[1761341490900,0.72,193.71,193.67,0.66]
[1761341491101,35.9,193.7,193.67,0.66]
[1761341491309,35.9,193.71,193.67,5.82338668]
[1761341491495,35.9,193.71,193.68,0.66]
[1761341491882,36.62,193.71,193.68,0.66]
[1761341493206,35.9,193.71,193.68,0.66]
[1761341495011,0.72,193.7,193.67,5.16338668]
[1761341495730,0.72,193.7,193.67,5.82338668]
[1761341497009,0.72,193.7,193.65,24.65515512]
[1761341497319,0.72,193.7,193.65,30.47907102]
[1761341498490,5.88273733,193.7,193.64,28.04419394]
[1761341498690,5.88273733,193.7,193.64,22.88]
[1761341498884,2.49515512,193.69,193.61,0.66]
[1761341499090,35.88,193.68,193.62,22.88]
[1761341499389,36.6,193.68,193.62,22.88]
[1761341499590,0.72,193.67,193.62,23.54]
[1761341499913,5.88343012,193.67,193.62,28.70472071]
[1761341500120,0.72,193.66,193.62,28.70472071]
[1761341500288,35.88,193.65,193.62,28.70472071]
[1761341500689,36.6,193.65,193.62,28.70472071]
[1761341501197,35.88,193.65,193.62,28.70472071]
[1761341501798,0.72,193.64,193.63,22.88]
[1761341502988,0.72,193.64,193.61,5.16500449]
[1761341503191,0.72,193.64,193.61,5.82500449]
[1761341504126,0.72,193.64,193.6,24.65515512]
[1761341504127,0.72,193.64,193.6,6.94038778]
[1761341504291,0.72,193.64,193.61,22.88]
[1761341504615,0.72,193.64,193.61,23.54]
[1761341505528,0.72,193.64,193.61,28.70489773]
[1761341506811,35.88,193.65,193.61,28.04489773]
[1761341506990,0.72,193.7,193.64,1.77515512]
[1761341507190,36.6,193.69,193.64,1.77515512]
[1761341507421,36.6,193.69,193.65,0.66]
[1761341508822,36.6,193.69,193.65,2.43515512]
[1761341509122,41.76289174,193.69,193.65,0.66]
[1761341509326,41.04289174,193.69,193.66,0.66]
[1761341509527,41.76289174,193.69,193.65,0.7]
[1761341511624,41.04289174,193.69,193.65,0.7]
[1761341511924,0.69,193.68,193.65,0.7]
[1761341515817,41.04289174,193.69,193.65,0.7]
[1761341516024,41.73289174,193.69,193.65,0.7]
[1761341517204,5.85289174,193.69,193.65,0.7]
[1761341517521,0.69,193.69,193.65,0.7]
[1761341517694,35.88,193.68,193.65,0.7]
[1761341518026,0.69,193.69,193.65,0.7]
[1761341518242,35.88,193.68,193.65,0.7]
[1761341518910,36.57,193.68,193.65,0.7]
[1761341519823,35.88,193.68,193.65,0.7]
[1761341523929,41.73316233,193.68,193.64,2.44515512]
[1761341524721,41.73316233,193.68,193.65,0.67]
[1761341525129,41.04316233,193.68,193.62,5.16472993]
[1761341525337,2.46515512,193.67,193.61,28.04499956]
[1761341525635,2.46515512,193.67,193.61,22.88]
[1761341525808,0.69,193.66,193.61,22.88]
[1761341526122,35.88,193.65,193.61,22.88]
[1761341526630,0.69,193.64,193.61,22.88]
[1761341527337,0.69,193.64,193.61,28.04501533]
[1761341528629,0.69,193.64,193.61,22.88]
[1761341528813,0.69,193.64,193.59,5.1653902]
[1761341529016,0.69,193.64,193.59,5.8353902]
[1761341529838,0.69,193.64,193.59,5.1653902]
[1761341530041,0.69,193.64,193.6,5.83527236]
[1761341530241,35.88,193.63,193.6,5.83527236]
[1761341530937,36.57,193.63,193.6,5.83527236]
[1761341531740,35.88,193.63,193.6,5.83527236]
[1761341534247,36.57,193.63,193.6,5.83527236]
[1761341534840,0.69,193.63,193.6,5.83527236]
[1761341535843,0.69,193.63,193.6,5.16527236]
[1761341536038,0.69,193.63,193.6,5.83527236]
[1761341538531,0.69,193.63,193.58,0.67]
[1761341538853,3.46587249,193.63,193.57,28.04608352]
[1761341539448,0.69,193.62,193.57,28.04608352]
[1761341540346,5.85487125,193.62,193.57,28.04608352]
[1761341540764,0.7,193.61,193.57,28.04608352]
[1761341540953,35.88,193.6,193.57,28.74608352]
[1761341541646,35.88,193.6,193.58,0.7]
[1761341542429,35.88,193.6,193.57,28.04608352]
[1761341542649,36.58,193.6,193.57,28.74608352]
[1761341543541,35.88,193.6,193.54,18.98977035]
[1761341543738,0.7,193.59,193.53,5.86695358]
[1761341543940,0.7,193.59,193.53,8.64282607]
[1761341544149,7.94190424,193.58,193.51,47.03880807]
[1761341544350,7.94190424,193.58,193.51,5.86743301]
[1761341544652,0.7,193.57,193.51,28.74743301]
[1761341544830,35.88,193.56,193.51,28.74743301]
[1761341545031,35.88,193.56,193.5,5.86794351]
[1761341545032,38.65587249,193.56,193.5,5.86794351]
[1761341545253,0.7,193.55,193.5,5.86794351]
[1761341545858,0.7,193.55,193.51,0.7]
[1761341546835,0.7,193.55,193.5,5.86794351]
[1761341547558,5.86664423,193.55,193.5,5.86794351]
[1761341548053,0.7,193.54,193.5,5.86794351]
[1761341548238,0.7,193.54,193.5,22.88]
[1761341548435,35.88,193.54,193.52,2.77587249]
[1761341548841,35.88,193.54,193.53,0.7]
[1761341549229,35.88,193.54,193.53,3.47587249]
[1761341549439,35.88,193.54,193.53,8.64303003]
[1761341551946,5.86558796,193.59,193.53,8.64303003]
[1761341552246,35.88,193.58,193.55,2.77587249]
[1761341552441,36.58,193.58,193.55,2.77587249]
[1761341552644,0.7,193.57,193.55,2.77587249]
[1761341553444,0.7,193.57,193.54,2.77587249]
[1761341553651,35.88,193.58,193.55,2.77587249]
[1761341553842,36.58,193.58,193.55,2.77587249]
[1761341554359,12.91311872,193.61,193.53,5.16715754]
[1761341554360,5.16522754,193.61,193.56,3.47587249]
[1761341554665,35.88,193.61,193.6,2.77587249]
[1761341555036,36.58,193.61,193.58,0.7]
[1761341555235,36.58,193.61,193.6,2.77587249]
[1761341557160,35.88,193.61,193.6,2.77587249]
[1761341557741,5.16398158,193.65,193.6,2.77587249]
[1761341557948,35.88,193.64,193.61,2.77587249]
[1761341558149,36.58,193.64,193.61,2.77587249]
[1761341559659,0.7,193.64,193.61,2.77587249]
[1761341559845,0.7,193.67,193.62,3.47587249]
[1761341560050,35.88,193.66,193.64,2.77587249]
[1761341560563,36.58,193.66,193.64,2.77587249]
[1761341563284,36.08,193.66,193.64,2.77587249]
[1761341564456,5.16318168,193.68,193.65,0.7]
[1761341564661,35.88,193.67,193.64,2.77587249]
[1761341564852,35.88,193.67,193.65,2.77587249]
[1761341564853,36.58,193.67,193.65,2.77587249]
[1761341565043,0.7,193.66,193.65,2.77587249]
[1761341565245,35.88,193.67,193.65,2.77587249]
[1761341565446,36.58,193.67,193.65,2.77587249]
[1761341571860,35.88,193.67,193.65,3.47587249]
[1761341572363,35.88,193.67,193.65,2.77587249]
[1761341572980,41.04344799,193.67,193.61,5.16478574]
[1761341573160,0.71,193.66,193.64,2.77587249]
[1761341576673,35.86,193.65,193.64,2.77587249]
[1761341580285,35.86,193.65,193.61,5.16478574]
[1761341580286,36.58,193.65,193.55,62.0]
[1761341580492,0.72,193.64,193.59,2.77587249]
[1761341580797,5.88440379,193.64,193.59,2.77587249]
[1761341580945,18.79495946,193.64,193.54,22.88]
[1761341581153,0.72,193.63,193.57,2.77587249]
[1761341581479,35.86,193.62,193.58,2.77587249]
[1761341581659,0.72,193.63,193.58,2.77587249]
[1761341581862,35.86,193.62,193.6,2.77587249]
[1761341582395,36.58,193.62,193.59,2.77587249]
[1761341586010,36.58,193.62,193.58,3.47587249]
[1761341587299,36.58,193.62,193.58,7.94168493]
[1761341587511,36.58,193.62,193.59,3.47587249]
[1761341587694,36.58,193.62,193.58,8.64168493]
[1761341587882,35.86,193.62,193.58,7.94168493]
[1761341588084,36.58,193.62,193.59,0.7]
[1761341588286,36.58,193.62,193.59,3.47587249]
[1761341589412,36.58,193.62,193.59,0.7]
[1761341590318,0.72,193.61,193.57,3.47587249]
[1761341590609,0.72,193.61,193.57,0.7]
[1761341591196,0.72,193.61,193.57,5.8659633]
[1761341594112,3.49587249,193.61,193.57,5.8659633]
[1761341594987,3.49587249,193.61,193.57,5.1659633]
[1761341595209,3.49587249,193.61,193.58,0.7]
[1761341595838,2.77587249,193.61,193.58,0.7]
[1761341596004,38.63587249,193.62,193.58,0.7]
[1761341596391,0.72,193.61,193.58,0.7]
[1761341600429,0.72,193.61,193.57,5.1659633]
[1761341600628,0.72,193.61,193.58,0.69]
[1761341600934,1.77710488,193.6,193.55,0.69]
[1761341601128,35.86,193.59,193.55,5.1666135]
[1761341601435,36.55,193.59,193.56,0.69]
[1761341602537,38.32710488,193.59,193.56,0.69]
[1761341603028,38.32710488,193.59,193.55,5.1666135]
[1761341603029,38.32710488,193.59,193.55,5.8566135]
[1761341604245,38.32710488,193.59,193.56,0.69]
[1761341604630,5.16503139,193.61,193.56,5.85630743]
[1761341604835,35.86,193.6,193.56,5.85630743]
[1761341605030,15.51470017,193.71,193.59,24.65710488]
[1761341605238,2.46710488,193.67,193.61,1.77710488]
[1761341605548,35.86,193.66,193.61,1.77710488]
[1761341605849,36.55,193.66,193.61,2.46710488]
[1761341606148,41.7137473,193.66,193.62,0.69]
[1761341607346,41.0237473,193.66,193.62,0.69]
[1761341607536,41.7137473,193.66,193.62,0.69]
[1761341608033,41.7137473,193.66,193.62,2.46710488]
[1761341608541,41.7137473,193.66,193.63,0.69]
[1761341609332,41.7137473,193.66,193.65,1.77710488]
[1761341609540,35.86,193.66,193.65,1.77710488]
[1761341609739,35.86,193.68,193.65,7.63096096]
[1761341609932,35.86,193.68,193.67,1.77710488]
[1761341610248,0.2,193.73,193.67,1.77710488]
[1761341610547,35.86,193.71,193.68,0.69]
[1761341611746,35.86,193.71,193.7,1.77710488]
[1761341612134,35.86,193.71,193.7,0.69]
[1761341612335,35.86,193.71,193.7,2.46710488]
[1761341614645,0.2,193.73,193.7,2.46710488]
[1761341614842,0.2,193.73,193.72,1.77710488]
[1761341615258,0.2,193.73,193.72,2.46710488]
[1761341629255,0.89,193.73,193.69,5.85265942]
[1761341629455,0.89,193.73,193.71,1.77710488]
[1761341629649,0.2,193.73,193.71,1.77710488]
[1761341629963,0.2,193.73,193.72,0.72]
[1761341633867,0.2,193.73,193.72,2.49710488]
[1761341635657,0.2,193.73,193.72,7.65919449]
[1761341644862,0.2,193.73,193.72,18.5356697]
[1761341645063,0.2,193.73,193.72,34.03353874]
[1761341650277,0.2,193.75,193.72,46.93876277]
[1761341650576,0.2,193.75,193.74,1.77710488]
[1761341651057,0.2,193.75,193.74,2.48710488]
[1761341651673,0.2,193.75,193.74,7.6486616]
[1761341651957,0.2,193.75,193.74,9.71504413]
[1761341652271,0.2,193.75,193.74,43.47151934]
[1761341656374,0.2,193.75,193.74,79.29151934]
[1761341656775,0.2,193.75,193.74,80.28443109]
[1761341663094,0.92,193.75,193.74,32.87795588]
[1761341663276,0.2,193.75,193.74,32.87795588]
[1761341663470,0.2,193.75,193.74,33.59795588]
[1761341674602,0.2,193.75,193.74,80.27443109]
[1761341678808,0.2,193.79,193.77,22.88]
[1761341679111,0.2,193.79,193.78,2.77001663]
[1761341679809,0.2,193.79,193.78,7.9305079]
[1761341680009,0.2,193.79,193.78,9.99646353]
[1761341685509,0.92,193.79,193.78,9.99646353]
[1761341693309,0.87,193.79,193.78,9.99646353]
[1761341698031,0.87,193.79,193.78,4.83597226]
[1761341698220,0.87,193.79,193.76,2.77001663]
[1761341698538,0.66,193.78,193.76,2.77001663]
[1761341699533,0.66,193.78,193.76,7.93094522]
[1761341699705,0.66,193.78,193.76,13.2906611]
[1761341706346,0.66,193.78,193.76,7.93094522]
[1761341718168,0.66,193.78,193.76,2.77001663]
[1761341718677,0.66,193.78,193.76,1.77350391]
[1761341727276,0.66,193.78,193.75,6.93474651]
[1761341728570,0.66,193.78,193.75,1.77350391]
[1761341728776,0.66,193.78,193.74,5.16152517]
[1761341729872,5.82065431,193.78,193.73,1.77350391]
[1761341730251,0.66,193.77,193.73,1.77350391]
[1761341731268,5.82077001,193.77,193.73,1.77350391]
[1761341731772,0.66,193.76,193.73,1.77350391]
[1761341737666,0.66,193.76,193.73,7.655233]
[1761341738376,0.66,193.76,193.73,6.935233]
[1761341739563,0.66,193.76,193.73,7.655233]
[1761341742173,0.66,193.76,193.73,6.935233]
[1761341742383,36.44,193.76,193.71,6.93568577]
[1761341742760,36.44,193.76,193.71,7.65568577]
[1761341742761,0.66,193.75,193.71,7.65568577]
[1761341744475,0.66,193.75,193.71,6.93568577]
[1761341744691,0.66,193.75,193.72,0.72]
[1761341746466,0.66,193.75,193.72,5.88201471]
[1761341746788,0.66,193.75,193.72,5.16201471]
[1761341747176,0.66,193.75,193.72,5.88201471]
[1761341747470,0.66,193.75,193.72,5.16201471]
[1761341747682,0.66,193.75,193.73,1.77350391]
[1761341756497,35.78,193.76,193.73,1.77350391]
[1761341756999,0.71,193.75,193.73,1.77350391]
[1761341757391,36.45,193.76,193.73,2.46350391]
[1761341757587,36.45,193.76,193.73,1.77350391]
[1761341758702,0.67,193.75,193.73,1.77350391]
[1761341759583,0.67,193.75,193.71,0.69]
[1761341759787,5.83132536,193.75,193.7,30.50608955]
[1761341760507,0.67,193.74,193.7,30.50608955]
[1761341761383,0.67,193.74,193.7,2.46350391]
[1761341763112,5.83156233,193.74,193.7,0.69]
[1761341763321,5.83156233,193.74,193.7,2.46350391]
[1761341763533,0.67,193.73,193.7,2.46350391]
[1761341763826,35.78,193.72,193.7,2.46350391]
[1761341765702,35.78,193.72,193.7,7.62610817]
[1761341773828,35.78,193.72,193.7,6.93610817]
[1761341774137,35.78,193.72,193.71,0.69]
[1761341774997,35.78,193.72,193.7,7.62610817]
[1761341776914,35.78,193.72,193.71,0.69]
[1761341777226,35.78,193.72,193.7,7.62610817]
[1761341778719,35.78,193.72,193.7,8.62543673]
[1761341785414,35.78,193.72,193.7,7.93543673]
[1761341786920,35.78,193.72,193.7,8.59543673]
[1761341796427,35.78,193.72,193.7,7.93543673]
[1761341796624,35.78,193.72,193.7,8.59543673]
[1761341797934,35.78,193.72,193.7,5.82260426]
[1761341798523,0.68,193.71,193.68,5.16292352]
[1761341798730,0.68,193.71,193.68,23.43762913]
[1761341799113,0.68,193.71,193.68,24.09762913]
[1761341801729,36.46,193.72,193.68,23.43762913]
[1761341802026,36.46,193.72,193.69,5.82273565]
[1761341805828,36.46,193.72,193.7,15.50427659]
[1761341809440,36.46,193.72,193.7,20.6666938]
[1761341817746,35.78,193.72,193.7,20.6666938]
[1761341818225,36.49,193.72,193.7,20.6666938]
[1761341824647,35.78,193.72,193.7,20.6666938]
[1761341826548,35.78,193.72,193.7,5.16241721]
[1761341826750,36.49,193.72,193.71,15.50427659]
[1761341829255,35.78,193.72,193.71,15.50427659]
[1761341829827,36.49,193.72,193.71,15.50427659]
[1761341830033,35.78,193.72,193.71,15.50427659]
[1761341831341,35.78,193.72,193.71,20.66663268]
[1761341831548,35.78,193.72,193.71,24.15946515]
[1761341834645,35.76,193.74,193.71,24.15946515]
[1761341834957,35.76,193.74,193.72,0.72]
[1761341835132,35.76,193.74,193.72,5.88208137]
[1761341835332,35.76,193.74,193.72,21.38475558]
[1761341835537,35.76,193.74,193.73,0.72]
[1761341835954,35.76,193.74,193.73,16.22267421]
[1761341836437,35.76,193.74,193.73,15.50267421]
[1761341837047,35.76,193.74,193.73,16.22267421]
[1761341837260,35.76,193.74,193.73,15.50267421]
[1761341843249,35.74,193.74,193.73,16.16267421]
[1761341843451,35.74,193.74,193.73,15.50267421]
[1761341845761,0.7,193.76,193.73,15.50267421]
[1761341845965,36.44,193.75,193.73,15.50267421]
[1761341848363,0.7,193.75,193.73,15.50267421]
[1761341848674,35.74,193.74,193.73,15.50267421]
[1761341851464,35.74,193.74,193.73,16.16267421]
[1761341851856,0.9,193.79,193.73,17.93714752]
[1761341852172,35.74,193.78,193.75,1.77447331]
[1761341852567,35.74,193.78,193.76,0.66]
[1761341853072,35.74,193.78,193.77,15.49866969]
[1761341853247,35.74,193.78,193.76,0.66]
[1761341854659,35.74,193.78,193.76,5.82100309]
[1761341855070,35.74,193.78,193.77,0.66]
[1761341857969,0.2,193.79,193.77,0.66]
[1761341858270,35.74,193.78,193.77,0.66]
[1761341865980,35.74,193.78,193.76,5.16100309]
[1761341866180,35.74,193.78,193.76,5.82100309]
[1761341871892,35.74,193.78,193.75,5.16129032]
[1761341872087,35.74,193.78,193.77,0.7]
[1761341872693,35.74,193.78,193.76,0.7]
[1761341874080,35.74,193.78,193.76,5.8610147]
[1761341874472,35.74,193.78,193.77,0.7]
[1761341876188,35.74,193.78,193.76,5.8610147]
[1761341877672,35.74,193.78,193.76,7.63548801]
[1761341880394,0.71,193.77,193.75,5.1610147]
[1761341880594,1.77447331,193.76,193.69,6.93734602]
[1761341880793,35.72,193.75,193.7,0.71]
[1761341881171,0.71,193.74,193.69,1.77447331]
[1761341881389,0.71,193.74,193.69,2.48447331]
[1761341881697,5.87157481,193.74,193.69,2.48447331]
[1761341881893,5.87157481,193.74,193.69,17.9887499]
[1761341882100,0.71,193.73,193.69,23.15162667]
[1761341882394,35.72,193.72,193.71,1.77447331]
[1761341886081,36.43,193.73,193.71,1.77447331]
[1761341888319,35.72,193.72,193.71,1.77447331]
[1761341898009,0.71,193.73,193.71,1.77447331]
[1761341898211,35.72,193.72,193.71,1.77447331]
[1761341899601,35.72,193.72,193.71,2.49447331]
[1761341900193,35.72,193.72,193.71,1.77447331]
[1761341900714,35.72,193.72,193.71,2.49447331]
[1761341901014,35.72,193.72,193.71,1.77447331]
[1761341902713,35.72,193.72,193.71,2.7724111]
[1761341902888,16.16347536,193.74,193.71,2.7724111]
[1761341903093,35.72,193.73,193.71,2.7724111]
[1761341903610,35.72,193.72,193.71,3.4924111]
[1761341903913,35.72,193.72,193.71,2.7724111]
[1761341904211,35.72,193.72,193.71,3.4924111]
[1761341904696,35.72,193.72,193.71,2.7724111]
[1761341907920,16.16347536,193.74,193.71,2.7724111]
[1761341908106,36.38,193.73,193.71,2.7724111]
[1761341911423,35.72,193.73,193.68,5.16289896]
[1761341911605,0.66,193.72,193.7,2.7724111]
[1761341912103,51.88427659,193.73,193.7,2.7724111]
[1761341912424,51.88427659,193.73,193.7,3.4924111]
[1761341913928,51.88427659,193.73,193.7,2.7724111]
[1761341915414,51.88427659,193.73,193.7,3.4924111]
[1761341922829,51.88427659,193.73,193.7,8.65495129]
[1761341923129,36.38,193.73,193.7,8.65495129]
[1761341923307,35.72,193.73,193.7,8.65495129]
[1761341924823,35.72,193.72,193.7,8.65495129]
[1761341926032,0.66,193.74,193.71,0.72]
[1761341926234,35.72,193.72,193.71,0.72]
[1761341928635,35.72,193.72,193.71,5.88235609]
[1761341929216,35.72,193.74,193.71,5.88235609]
[1761341929432,35.72,193.74,193.72,3.4924111]
[1761341930423,35.72,193.74,193.72,2.7724111]
[1761341930824,35.72,193.74,193.72,3.4724111]
[1761341931019,5.16075778,193.77,193.72,7.93448365]
[1761341931230,35.7,193.76,193.73,0.7]
[1761341931441,36.4,193.76,193.73,0.7]
[1761341931731,36.4,193.76,193.72,2.7724111]
[1761341932032,36.4,193.76,193.72,3.4724111]
[1761341933238,41.56109352,193.76,193.72,3.4724111]
[1761341934031,0.7,193.75,193.72,3.4724111]
[1761341934738,40.86109352,193.76,193.72,3.4724111]
[1761341935039,41.56109352,193.76,193.72,3.4724111]
[1761341935339,0.7,193.75,193.72,3.4724111]
[1761341935719,41.56109352,193.76,193.72,3.4724111]
[1761341936141,41.56109352,193.76,193.72,2.7724111]
[1761341936346,41.56109352,193.76,193.73,0.7]
[1761341937443,0.7,193.75,193.72,3.4324111]
[1761341938046,36.4,193.76,193.72,8.59440801]
[1761341938545,35.7,193.76,193.73,0.66]
[1761341939439,35.7,193.76,193.73,8.59417557]
[1761341940123,35.7,193.76,193.73,3.4324111]
[1761341941346,0.7,193.77,193.73,3.4324111]
[1761341941548,35.7,193.75,193.73,3.4324111]
[1761341942733,5.1610715,193.76,193.73,2.7724111]
[1761341942930,35.7,193.75,193.73,3.4324111]